Cogmind - Beta 13 @@@ ROGUE MODE // 2024.05.19 @ 11:31:06 Player: FauxMaasks Result: Self-destructed Performance ------------- Evolutions (2) 1000 Regions Visited (3) 600 Robots Destroyed (23) 115 Value Destroyed (670) 670 Prototype IDs (4) 80 Alien Tech Used (0) 0 Bonus (0) 0 TOTAL SCORE: 2465 Bonus ------- None Cogmind --------- Core Integrity 46/550 Matter 279/300 Energy 100/100 System Corruption 2% Temperature Warm (156) Movement Flying (210) Ox2 Location -8/Materials Parts ------- > --- POWER (1) -------- (None) > --- PROPULSION (3) --- Improved Aluminum Leg Flight Unit > --- UTILITY (5) ------ Small Storage Unit Signal Interpreter Improved Terrain Scanner Improved Terrain Scan Processor > --- WEAPON (2) ------- Field Laser > --- INVENTORY (8) ---- Beam Rifle Particle Gun Heavy Assault Rifle Grenade Launcher Peak State ------------ > --- POWER ------------ Light Deuterium Engine > --- PROPULSION ------- Improved Aluminum Leg VSS Leg > --- UTILITY ---------- Small Storage Unit Signal Interpreter Improved Terrain Scanner Improved Terrain Scan Processor > --- WEAPON ----------- Field Laser Shotgun > --- INVENTORY -------- Flight Unit Flight Unit Flight Unit Beam Rifle Particle Gun Heavy Assault Rifle Grenade Launcher [Rating: 22] Favorites ----------- Power Light Deuterium Engine Engine Light Deuterium Engine Propulsion Flight Unit Treads Armored Treads Leg VSS Leg Flight Unit Flight Unit Utility Signal Interpreter Device Sensor Array Storage Small Storage Unit Processor Signal Interpreter Protection Light Armor Plating Weapon Light Assault Rifle Energy Gun Particle Gun Ballistic Gun Light Assault Rifle Build | -11 -10 -9 -8 ------- Run | Yrd Mat Mat Mat Slots Evolved 4 | . . 2 2 Power . | . . . . Propulsion 1 | . . . 1 Utility 3 | . . 2 1 Weapon . | . . . . Parts Attached 33 | . 6 7 20 Power 1 | . . . 1 Engine 1 | . . . 1 Core . | . . . . Reactor . | . . . . Propulsion 13 | . 2 2 9 Treads 2 | . . . 2 Leg 3 | . . . 3 Wheel . | . . . . Hover . | . . . . Flight 8 | . 2 2 4 Utility 8 | . 2 4 2 Device 3 | . 1 1 1 Storage 1 | . . . 1 Processor 2 | . 1 1 . Hackware . | . . . . Protection 2 | . . 2 . Artifact . | . . . . Weapon 11 | . 2 1 8 Energy Gun 3 | . . 1 2 Energy Cannon . | . . . . Ballistic Gun 8 | . 2 . 6 Ballistic Cannon . | . . . . Launcher . | . . . . Special Weapon . | . . . . Impact Weapon . | . . . . Slashing Weapon . | . . . . Piercing Weapon . | . . . . Special Melee Weapon . | . . . . Unidentified Prototypes . | . . . . Parts Lost 18 | . 2 2 14 Power 1 | . . . 1 Propulsion 6 | . 1 . 5 Utility 3 | . 1 1 1 Weapon 8 | . . 1 7 Highest Loss Streak 5 | . 1 1 5 To Critical Strikes . | . . . . Average Slot Usage (%) 59 | . 32 68 69 Treads 3 | . . . 7 Leg 2 | . . . 5 Flight 8 | . 4 18 4 Device 4 | . 2 4 6 Storage 4 | . . . 9 Processor 14 | . 3 19 18 Protection 1 | . . 5 . Energy Gun 5 | . . 8 6 Ballistic Gun 14 | . 22 12 10 Naked Turns 6 | . 6 . . Heaviest Build 17 | . 4 8 17 Greatest Support 40 | 3 4 8 40 Greatest Overweight (x) 2 | . 1 1 2 Average Overweight (x) . | . . . . Largest Inventory Capacity 8 | 5 5 5 8 Average Capacity 6 | 5 5 5 7 Most Carried 8 | 2 3 5 8 Average Carried 4 | 1 2 4 6 Final Capacity 8 | 5 5 5 8 Final Carried 5 | 2 2 5 4 Class Distribution -------------------- 82% | Mutant 17% | Scavenger-Mutant Dominant Class ---------------- Mutant | -10/Materials Mutant | -9/Materials Mutant | -8/Materials Resources | -11 -10 -9 -8 ----------- Run | Yrd Mat Mat Mat Matter Collected 687 | 167 136 101 283 Remotely . | . . . . Salvage Created 701 | . 167 51 483 Parts 34 | . 5 6 23 Haulers Intercepted . | . . . . Recyclers Shooed . | . . . . Parts Field Recycled . | . . . . Retrieved Matter . | . . . . Parts Self-Destructed . | . . . . Prevented . | . . . . Kills | -11 -10 -9 -8 ------- Run | Yrd Mat Mat Mat Combat Hostiles Destroyed 21 | . 4 3 14 Guns 21 | . 4 3 14 Classes Destroyed 7 | . 2 1 4 Builder 1 | . . . 1 Watcher 1 | . 1 . . Swarmer 9 | . . 3 6 Grunt 7 | . 4 . 3 Sentry 1 | . . . 1 Specialist 2 | . . . 2 Hunter 2 | . . . 2 Best Kill Streak 4 | . 2 3 4 Combat Bots Only 4 | . 2 3 4 Max Kills in Single Turn 1 | . 1 1 1 Gunslinging . | . . . . Exploded . | . . . . Melee . | . . . . Uniques/NPCs Destroyed . | . . . . Combat | -11 -10 -9 -8 -------- Run | Yrd Mat Mat Mat Hostile Shots Fired 263 | . 18 36 209 Missed 82 | . 3 15 64 Damage Taken 2412 | . 187 224 2001 Core 572 | . 36 32 504 Absorbed by Shields . | . . . . Core Remaining (%) 92 | 100 85 92 . Volleys Fired 98 | . 22 9 67 Largest 2 | . 2 2 2 Hottest 86 | . 40 85 86 Shots Fired 185 | . 44 11 130 Gun 185 | . 44 11 130 Cannon . | . . . . Launcher . | . . . . Special . | . . . . Kinetic 141 | . 44 10 87 Thermal 44 | . . 1 43 Explosive . | . . . . Electromagnetic . | . . . . Robot Hit Streak 12 | . 9 5 12 Robot Miss Streak 3 | . 3 3 3 Penetration Max . | . . . . Secondary Targets 1 | . . . 1 Max Gunslinging Chain 1 | . . . 1 Shots Hit Robots 125 | . 29 5 91 Core Hits 48 | . 13 4 31 Critical Kills 1 | . . . 1 Critical Parts Destroyed 2 | . 1 . 1 Critical Strikes 5 | . 1 . 4 Burn 2 | . . . 2 Destroy 3 | . 1 . 2 Melee Attacks . | . . . . Impact . | . . . . Slashing . | . . . . Piercing . | . . . . Sneak Attacks . | . . . . Combat Hostiles . | . . . . Follow-up Attacks . | . . . . Damage Inflicted 1580 | . 316 52 1212 Guns 1575 | . 311 52 1212 Cannons . | . . . . Explosions . | . . . . Melee . | . . . . Ramming 5 | . 5 . . Kinetic 1024 | . 311 34 679 Thermal 551 | . . 18 533 Explosive . | . . . . Electromagnetic . | . . . . Impact . | . . . . Slashing . | . . . . Piercing . | . . . . Highest Corruption 3 | . 3 . 2 Average Corruption 1 | . 2 . 1 Corruption Purged . | . . . . Corruption Blocked . | . . . . Effects 8 | . 4 . 4 Message Errors 1 | . 1 . . Matter Fused 1 | . 1 . . Parts Rejected 2 | . . . 2 Parts Fused 1 | . 1 . . Data Loss (minor) 1 | . 1 . . Alerts 1 | . . . 1 Weapon Failures 1 | . . . 1 Overload Shots . | . . . . Overflow Damage . | . . . . Projectiles . | . . . . Explosions . | . . . . Melee . | . . . . Knockbacks . | . . . . Impact . | . . . . Kinetic . | . . . . Secondary . | . . . . Self-Inflicted Damage 2 | . 2 . . Shots . | . . . . Rammed 1 | . 1 . . Targets Rammed 2 | . 1 . 1 Kicked . | . . . . Crushed 1 | . . . 1 Highest Temperature 156 | . 4 38 156 Average Temperature 31 | . 2 24 33 Received Heat Transfer 621 | . 102 33 486 Siege Activations . | . . . . Robots Corrupted . | . . . . Combat Hostiles . | . . . . Parts Fried . | . . . . Impact Corruptions . | . . . . Robots Melted . | . . . . Combat Hostiles . | . . . . Parts Melted . | . . . . Heat Transferred 1369 | . . 37 1332 Parts Sabotaged . | . . . . Parts Stolen . | . . . . Parts Stripped . | . . . . Power Chain Reactions . | . . . . Alert | -11 -10 -9 -8 ------- Run | Yrd Mat Mat Mat Peak Influence 427 | . 124 427 265 Initial 91 | . . 2 91 Average 137 | . 47 197 156 Maximum Alert Level 2 | . . 2 1 Low Security (%) 75 | 100 100 53 75 Level 1 21 | . . 37 24 Level 2 2 | . . 8 . Level 3 . | . . . . Level 4 . | . . . . Level 5 . | . . . . High Security . | . . . . Max Security . | . . . . Squads Dispatched 7 | . 1 2 4 Investigation 1 | . . 1 . Extermination . | . . . . Reinforcement 5 | . 1 1 3 Assault . | . . . . Garrison 1 | . . . 1 Intercept . | . . . . Searches Triggered . | . . . . Construction Impeded . | . . . . Haulers Reinforced . | . . . . Active Scanning Responses . | . . . . Cargo Convoy Interrupts . | . . . . Stealth | -11 -10 -9 -8 --------- Run | Yrd Mat Mat Mat Distress Signals 5 | . . 1 4 Communications Jammed . | . . . . Distress Signals . | . . . . Times Spotted 67 | . 7 29 31 Peak Tracking Total 15 | . 3 15 10 Tactical Retreats 8 | . . 5 3 Traps | -11 -10 -9 -8 ------- Run | Yrd Mat Mat Mat Traps Triggered 3 | . 2 . 1 Indirectly . | . . . . Trap Hack Attempts . | . . . . Triggered . | . . . . Disarmed . | . . . . Reprogrammed . | . . . . Reused . | . . . . Traps Extracted . | . . . . Installed . | . . . . Triggered . | . . . . Machines | -11 -10 -9 -8 ---------- Run | Yrd Mat Mat Mat Machines Disabled . | . . . . Max in Single Turn . | . . . . Machines Repaired . | . . . . Machines Dismantled . | . . . . Machines Sabotaged . | . . . . Overloaded Fab Kills . | . . . . Hacking | -11 -10 -9 -8 --------- Run | Yrd Mat Mat Mat Machines Accessed 18 | . 4 8 6 Terminals 18 | . 4 8 6 Fabricators . | . . . . Repair Stations . | . . . . Recycling Units . | . . . . Scanalyzers . | . . . . Garrison Access . | . . . . Total Hacks 52 | . 9 27 16 Successful 24 | . 2 17 5 Failed 28 | . 7 10 11 Catastrophic 4 | . 1 1 2 Database Lockouts . | . . . . Manual 34 | . 2 23 9 Terminals 52 | . 9 27 16 Fabricators . | . . . . Repair Stations . | . . . . Recycling Units . | . . . . Scanalyzers . | . . . . Garrison Access . | . . . . Terminal Hacks 14 | . 2 8 4 Robot Analysis 3 | . . 3 . Prototype ID Bank 2 | . 1 1 . Terminal Index 1 | . . 1 . Alert Level 3 | . . 1 2 Unreport Threat 4 | . 1 2 1 Locate Traps 1 | . . . 1 Fabricator Hacks . | . . . . Repair Station Hacks . | . . . . Recycling Unit Hacks . | . . . . Scanalyzer . | . . . . Garrison Access Hacks . | . . . . Unauthorized Hacks 10 | . . 9 1 Terminals 10 | . . 9 1 Track 1 | . . 1 . Assimilate 1 | . . 1 . Botnet 5 | . . 4 1 Disrupt 2 | . . 2 . Operators 1 | . . 1 . Fabricators . | . . . . Repair Stations . | . . . . Recycling Units . | . . . . Scanalyzers . | . . . . Garrison Access . | . . . . Data Cores Recovered . | . . . . Used . | . . . . Hacking Detections 17 | . 4 7 6 Full Trace Events 3 | . 1 1 1 Feedback Events 1 | . . . 1 Corruption 1 | . . . 1 Feedback Blocked . | . . . . Robot Schematics Acquired . | . . . . Robots Built . | . . . . Authchips . | . . . . Time . | . . . . Total Robot Build Rating . | . . . . Part Schematics Acquired . | . . . . Parts Built . | . . . . Authchips . | . . . . Time . | . . . . Total Part Build Rating . | . . . . Parts Repaired . | . . . . Time . | . . . . Parts Recycled . | . . . . Recycled Matter . | . . . . Retrieved Matter . | . . . . Retrieved Components . | . . . . Parts Scanalyzed . | . . . . Part Schematics Acquired . | . . . . Parts Damaged . | . . . . Bothacking | -11 -10 -9 -8 ------------ Run | Yrd Mat Mat Mat Used RIF Installer . | . . . . Robots Hacked . | . . . . Non-combat . | . . . . Combat . | . . . . Robot Hacks Applied . | . . . . Relay Couplers Released . | . . . . Fabnet Peak Effective % . | . . . . Robots Rewired . | . . . . Allies Hacked . | . . . . Hacks Repelled . | . . . . Allies | -11 -10 -9 -8 -------- Run | Yrd Mat Mat Mat Total Allies . | . . . . Largest Group . | . . . . Highest-Rated Group . | . . . . Highest-Rated Ally . | . . . . Total Orders . | . . . . Ally Attacks . | . . . . Total Damage . | . . . . Kills . | . . . . Allies Corrupted . | . . . . Allies Melted . | . . . . Intel | -11 -10 -9 -8 ------- Run | Yrd Mat Mat Mat Robot Analysis Total 3 | . . 3 . Derelict Logs Recovered . | . . . . Drone Launches . | . . . . Drone Recoveries . | . . . . Exploration | -11 -10 -9 -8 ------------- Run | Yrd Mat Mat Mat Turns Passed 1047 | 14 270 296 467 Spaces Moved 1268 | 24 379 599 266 Core 291 | 24 192 72 3 Treads 47 | . . . 47 Legs 74 | . . . 74 Wheels . | . . . . Hover . | . . . . Flight 856 | . 187 527 142 Fastest Speed 34 | 50 40 37 34 Average Speed 49 | 50 47 38 77 Slowest Speed 170 | 50 100 100 170 Overloaded Moves . | . . . . Propulsion Burnouts . | . . . . Robots Hopped 14 | . 5 8 1 Cave-ins Triggered . | . . . . Exploration Rate (%) 36 | 4 42 68 33 Regions Visited 3 Branch Regions . Pre-discovered Areas . | . . . . Known Exits Taken 2 | . 1 1 . Unknown Exits Taken 1 | 1 . . . Scrap Searched . | . . . . Spaces Dug . | . . . . Terrain Destroyed . | . . . . Melee . | . . . . Projectile . | . . . . AOE . | . . . . Terrain Rammed . | . . . . Walls Destroyed . | . . . . Machines Disabled . | . . . . Actions | -11 -10 -9 -8 --------- Run | Yrd Mat Mat Mat Total 1494 | 25 423 643 403 Wait 87 | . 18 31 38 Move 1238 | 23 369 582 264 Hop 13 | . 4 8 1 Pick Up 18 | 2 2 5 9 Fast Attach 13 | . 3 4 6 Attach 19 | . 3 3 13 Detach 5 | . 1 1 3 Swap 1 | . . . 1 Drop . | . . . . Fire 98 | . 22 9 67 Melee . | . . . . Ram 1 | . 1 . . Kick . | . . . . Crush 1 | . . . 1 Escape Stasis . | . . . . Rewire . | . . . . Trap . | . . . . Miscellaneous . | . . . . Route ------- -11/Scrapyard -10/Materials -9/Materials (discovered 2 exits: *Mat / *Min) -8/Materials History --------- Turn | Location | Event 7 | -11/Scrapyard | Discovered new exit (range 16) 15 | -11/Scrapyard | Entered Materials 278 | -10/Materials | Discovered new exit (range 13) 284 | -10/Materials | Identified exit to Materials 285 | -10/Materials | Entered another Materials area 285 | -9/Materials | Evolved 2 slots: Utility x2 289 | -9/Materials | Discovered new exit (range 14) 295 | -9/Materials | Identified exit to Mines 300 | -9/Materials | Build established: Mutant 576 | -9/Materials | Discovered new exit (range 14) 580 | -9/Materials | Identified exit to Materials 581 | -9/Materials | Entered another Materials area 581 | -8/Materials | Evolved 2 slots: Propulsion x1, Utility x1 861 | -8/Materials | Core integrity fell below 50% 881 | -8/Materials | Lost 5 parts (2n1u2w) 976 | -8/Materials | Garrison activated, responded to threat 1044 | -8/Materials | Core integrity fell below 20% 1048 | -8/Materials | Self-destructed Last Messages --------------- 00988_ G-50 Soldier suffers critical hit (Destroy). 00988_ Destroyed Hvy. Laser. 00993_ R-06 Scavenger collects Aluminum Leg. 00995_ Acquired Particle Gun. 00996_ S-10 Pest destroyed. 00996_ R-06 Scavenger collects Lgt. Nuclear Core. 01001_ R-06 Scavenger collects Flight Unit. 01002_ S-10 Pest destroyed. 01006_ Acquired 14 matter. 01006_ R-06 Scavenger collects Lgt. Assault Rifle. 01008_ Acquired 89 matter. 01010_ Acquired 14 matter. 01028_ System corrupted: IFF burst signal emitted. 01029_ G-50 Soldier suffers critical hit (Burn). 01037_ VSS Leg destroyed. 01039_ Flight Unit destroyed. 01041_ R-06 Scavenger collects Flight Unit. 01041_ Shotgun destroyed. 01045_ Flight Unit destroyed. 01047_ Lgt. Deuterium Engine destroyed. Map ----- +----------------------------------------------------+ | ???????????????????????????????????????????? | | ???????????????????????????????????????????? | | ???????????????????????????????????????????? | | ###??????????????????????????????????????????????? | | #??????#?????###???????????????????????????????? | | +?????? ???? ???????????????????????????????? | | #??????# ???? ???????????????????????????????? | | " #??????# ???? ???????????????????????????????? | | " #??????# ???? ???????????????????????????????? | | " #??????# ????# #???????????????????????????????? | | #?######+###?# #??#? ??? ? #??????????????????? | | #?# #?# #?##? ?? ????#??????????????????? | | #/### "" #?# #??#?? "???##?????????????????? | | # ""S ### ##?# ??? ????????#??????????????? | | # "" + #?#?#?#????#???#???#????????????? | | T %+ ### # ?? ????####??#???????????????? | | *# """ ### # """"??????#?###?#?#???????????? | | ! # """ ### # """"???????#?###?##???????????? | | ## """ ### #???""" ?????? ??????????????? | | ## #?# #?? ?? ??#??? ? ????? ??????????? | | ### #######?# # ? """#?? ? ??? ? ???????????? | | #?####?##?### # ? ? R"#??? ##??????##????????? | | ####???#?##?# # ?"""#?? ##??#?#???????????? | | #?####??###?# # ? ?# #??? ????????????? | | ############# ###+####### #?? ?????#????????? | | a @ g #????""???????????? | | gg +??????? ?????????? | | r %% #?? """ #????????? | | ######+######+############"T"###????"????????????? | | #?##? ? # " % #?##??##"""##?? ?? ????????????? | | #?#??? ?# " " #?###??#####?# ????????????????? | | ??#??"" ? # """ #??##??######?? ???????????????? | | ??##"?"?? # """ ###?#?#??#????????#????????????? | | ####""? # """ ##?##???####??#?????#??????????? | | ??## ?? ? # ##?#####??#??#???###???????????? | | ?#?###?#### """ ##????? ? ??? ????????????????? | | #?####?##?# """ ## ?? ??? ? ?????????????? | | #?#?##?#??# """ + ?? ? ?????????????????????? | | ?#?####???# """ #?#?#??#? ?????????????????????? | | ??????#?### ??#????####????? ????????????????? | | ????##???######?##???###?#?? ????????????????????? | | ??#???#??#?##?????###?##?????????????????????????? | | ??????#????##?#?###??????????????????????????????? | | ???????##??##??####??#???????????????????????????? | | ?????????#??####???#?????????????????????????????? | | ?????????????????????????????????????????????????? | | ?????????????????????????????????????????????????? | | ?????????????????????????????????????????????????? | | ?????????????????????????????????????????????????? | | ?????????????????????????????????????????????????? | +----------------------------------------------------+ Best States ------------- Heat Dissipation 31 Energy Generation 14 Energy Capacity 140 Matter Stores 300 Matter Capacity 300 Sight Range 16 Robot Scan Range 14 Terrain Scan Range 16 Terrain Scan Density 110 Armor Coverage 150 Evasion (%) 63 Recoil Reduction 2 Item Schematics ----------------- None Robot Schematics ------------------ None Fabricated ------------ Nothing Alien Tech Used ----------------- None Achievements -------------- Omniscient Cartographer Challenges ------------ None Game ------ Seed BurstFactoryBlaster Manual? 0 Play Time 00:29:49 Cumulative 119.1 hours Start 2024.05.19 @ 10:14:22 End 2024.05.19 @ 11:31:06 Sessions 1 Manual Loads 0 Difficulty Rogue Special Mode None Game No. 28 Rogue 9 Adventurer 17 Explorer 2 Win Type - Total 3 Types 2/0/1/0/0/0/0/0/0 Lore% 48 Gallery% 60 Achievement% 56 Wizard Run 0 Options --------- Layout 2 ASCII 0 Keyboard 0 Movement Vi Keybinds 0 Fullscreen 0 Font 20/SmallcapsGlow Map View 64x51 Zoom Use 0% Tactical HUD 1 Map Filters NONE Filters NONE Steam 1 RUN: 9dd9c528-f7f0-4a2a-a358-7a57a9667007